[Event "Srdja Dragasevic Memorial-A 2024"]
[Site "Cetinje"]
[Date "2024.06.25"]
[Round "5.1"]
[White "Petrov, Nikita"]
[Black "Tadic, Stefan"]
[Result "1-0"]
[ECO "A07"]
[WhiteElo "2566"]
[BlackElo "2421"]
[Annotator "TA"]
[PlyCount "79"]
[EventDate "2024.06.23"]
[EventType "swiss"]
[EventCountry "MNE"]
[SourceTitle "playchess.com"]
[Source "ChessBase"]
[SourceQuality "1"]
[TimeControl "40/5400+30:1800+30"]

{[%evp 9,79,-9,-1,-11,0,0,16,14,15,16,41,44,81,89,107,124,182,154,166,172,179,160,209,190,190,177,178,158,158,107,196,196,249,252,246,252,309,297,285,274,256,274,333,267,270,262,288,281,360,332,308,355,439,357,354,339,325,310,438,427,428,398,427,429,406,376,370,352,358,359,479,470]} 1. Nf3 {[%emt 0:03:11]} d5 {[%emt 0:00:05]} 2. g3 {[%emt 0:00:18]} g6 {[%emt 0:00:05]} 3. c4 {[%emt 0:00:21]} d4 {[%emt 0:00:05]} 4. b4 {[%emt 0:01:40]} c5 {[%emt 0:00:04]} 5. b5 {[%emt 0:01:23]} Bg7 {[%emt 0:11:14]} 6. d3 {[%emt 0:01:11]} e5 {[%emt 0:00:14]} 7. Bg2 {[%emt 0:01:15]} Ne7 {[%emt 0:02:44]} 8. O-O {[%emt 0:01:01] The position is equal.} O-O {[%emt 0:00:15]} 9. a4 {[%emt 0:00:18]} a5 {[%emt 0:06:48]} 10. Ra2 {[%emt 0:02:43]} h6 {[%emt 0:16:20]} 11. e3 {[%emt 0:05:01]} g5 {[%emt 0:00:07]} 12. exd4 {[%emt 0:13:02]} cxd4 {[%emt 0:00:12]} (12... exd4 $16 13. h4 g4) 13. Ba3 {[%emt 0:03:17]} Re8 {[%emt 0:02:01]} 14. Re1 {[%emt 0:08:16]} Ng6 {[%emt 0:00:37]} 15. Nfd2 {[%emt 0:00:47]} f5 {[%emt 0:08:08]} (15... Bf8 $16 16. Bxf8 Rxf8) 16. Nb3 {[%emt 0:06:04]} Nd7 {[%emt 0:07:27]} 17. c5 {[%emt 0:06:56] Wards off Nb6} Nf6 {[%emt 0:00:21]} 18. N1d2 {[%emt 0:02:11]} Nd5 {[%emt 0:12:07][%cal Oe5e4] [#]} 19. Nxd4 {[%emt 0:04:10]} Kh7 {[%emt 0:00:18]} (19... Ndf4 $16 20. gxf4 Qxd4) 20. Ne2 $18 {[%emt 0:02:53]} Nb4 {[%emt 0:07:09]} (20... Bf8 $142 21. Nc4 Be6) 21. Bxb4 {[%emt 0:00:32]} axb4 {[%emt 0:00:01]} 22. Nc4 {[%emt 0:02:54]} Bf8 {[%emt 0:00:05]} 23. c6 {[%emt 0:03:12]} Rb8 {[%emt 0:04:29]} 24. Rd2 {[%emt 0:07:19]} bxc6 {[%emt 0:09:44]} 25. Bxc6 {[%emt 0:00:20]} Bb7 {[%emt 0:00:02]} 26. d4 {[%emt 0:01:12] aiming for dxe5.} Bxc6 {[%emt 0:02:01]} 27. bxc6 {[%emt 0:00:04] Threatens to win with dxe5.} Qd5 {[%emt 0:03:22]} 28. c7 {[%emt 0:08:17]} Qxc4 {[%emt 0:00:04]} 29. cxb8=Q {[%emt 0:00:04]} ({But not} 29. cxb8=N Rxb8 30. dxe5 Nxe5) 29... Rxb8 {[%emt 0:00:03]} 30. dxe5 {[%emt 0:00:58]} Nxe5 {[%emt 0:00:03]} 31. Nd4 {[%emt 0:00:15] Repels Nf3+} Bg7 {[%emt 0:03:28]} 32. Nxf5 {[%emt 0:04:04]} Rf8 {[%emt 0:00:05]} 33. Nd4 {[%emt 0:04:31][%cal Bf5d4,Bd4b3,Bb3c5][%mdl 32]} Rd8 {[%emt 0:00:05]} (33... Kh8 $142 34. Qb1 b3) 34. Re3 {[%emt 0:01:18]} g4 {[%emt 0:00:56]} 35. Nb3 {[%emt 0:02:16]} Rf8 {[%emt 0:01:42]} 36. Rd4 {[%emt 0:02:18]} Qc6 {[%emt 0:00:01] [#]} 37. Rxe5 {[%emt 0:00:40]} Bxe5 {[%emt 0:00:05]} 38. Rxb4 {[%emt 0:00:21]} h5 {[%emt 0:01:04]} 39. Rb5 {[%emt 0:00:41]} Qe4 {[%emt 0:00:57]} 40. Nc5 {[%emt 0:00:00] Weighted Error Value: White=0.14 (very precise) /Black=0.34.  Mistake:       	White=1     	Black=5      Inaccurate:     	---       	Black=2      OK:         	White=15    	Black=14     Best:        	White=1     	---} 1-0

[Event "Srdja Dragasevic Memorial-A 2024"]
[Site "Cetinje"]
[Date "2024.06.25"]
[Round "5.2"]
[White "Saraci, Nderim"]
[Black "Mammadova, Narmin"]
[Result "1/2-1/2"]
[ECO "D78"]
[WhiteElo "2449"]
[BlackElo "2277"]
[Annotator "TA"]
[PlyCount "100"]
[EventDate "2024.06.23"]
[EventType "swiss"]
[EventCountry "MNE"]
[SourceTitle "playchess.com"]
[Source "ChessBase"]
[SourceQuality "1"]
[TimeControl "40/5400+30:1800+30"]

{[%evp 13,100,15,28,16,26,18,27,20,27,25,16,21,29,29,66,12,24,22,20,10,29,13,50,40,44,16,17,23,21,20,17,15,14,0,21,16,18,4,10,0,8,0,0,0,0,0,-8,-37,-18,-14,0,-18,0,-6,464,-39,-43,-47,0,0,0,-8,0,0,0,0,0,0,0,0,0,0,0,0,0,0,0,0,0,0,0,0,0,0,0,0,0,0,0]} 1. d4 {[%emt 0:00:05]} d5 {[%emt 0:03:30]} 2. Nf3 {[%emt 0:00:22]} Nf6 {[%emt 0:00:10]} 3. g3 {[%emt 0:00:54]} g6 {[%emt 0:01:31]} 4. Bg2 {[%emt 0:00:41]} Bg7 {[%emt 0:00:05]} 5. c4 {[%emt 0:01:18]} c6 {[%emt 0:01:06]} 6. O-O {[%emt 0:02:31]} O-O {[%emt 0:01:25]} 7. b3 {[%emt 0:14:29]} b6 {[%emt 0:15:10]} 8. Bb2 {[%emt 0:11:24]} Bb7 {[%emt 0:03:15]} 9. Nc3 {[%emt 0:01:59]} Nbd7 {[%emt 0:08:52]} 10. Qc2 {[%emt 0:06:28] White has an edge.} Rc8 {[%emt 0:04:09]} 11. e4 {[%emt 0:10:24]} dxe4 {[%emt 0:09:25]} 12. Nxe4 {[%emt 0:01:48]} Nxe4 {[%emt 0:00:29]} 13. Qxe4 {[%emt 0:00:06]} Rc7 {[%emt 0:02:46]} 14. Rfe1 {[%emt 0:06:55] White is more active.} ({White should try} 14. Qc2 $14) 14... e6 $11 {[%emt 0:02:59]} 15. Qe2 {[%emt 0:05:31]} c5 {[%emt 0:07:20]} 16. dxc5 {[%emt 0:06:50]} Nxc5 {[%emt 0:11:24]} 17. Rad1 {[%emt 0:00:57]} Qe7 {[%emt 0:01:25]} 18. Bxg7 {[%emt 0:05:31]} Kxg7 {[%emt 0:00:13]} 19. Ne5 {[%emt 0:03:48]} Bxg2 {[%emt 0:01:51]} 20. Kxg2 {[%emt 0:00:06]} Rd8 {[%emt 0:05:17]} 21. Rxd8 {[%emt 0:01:50]} Qxd8 {[%emt 0:00:03]} 22. Rd1 {[%emt 0:00:50]} Qe7 {[%emt 0:02:27]} 23. Qf3 {[%emt 0:04:04]} (23. h4 {simplifies} f6 24. Nd3 Nxd3 25. Qxd3 e5 26. Qd5) 23... Qf6 {[%emt 0:05:47]} 24. Qe3 {[%emt 0:00:50]} Qf5 {[%emt 0:01:15] Prevents Ng4} 25. f3 {[%emt 0:07:50] Threatening g4.} f6 {[%emt 0:01:45]} 26. Ng4 {[%emt 0:00:38]} g5 $1 {[%emt 0:00:08]} 27. b4 {[%emt 0:01:33]} Nd7 {[%emt 0:05:21][%cal Oh7h5]} 28. Qd4 {[%emt 0:02:16] [#] Qd6 would now be deadly.} h5 {[%emt 0:01:32]} 29. Ne3 {[%emt 0:01:05]} Qe5 {[%emt 0:00:03]} 30. Qd2 {[%emt 0:01:15][%cal Oc4c5]} (30. f4 {simplifies} Qxd4 31. Rxd4 Kf7 32. a3) 30... Nf8 {[%emt 0:02:39]} 31. Qd8 {[%emt 0:00:48]} Ng6 {[%emt 0:02:02]} 32. Kf2 {[%emt 0:00:48][%cal Oc4c5]} Rf7 {[%emt 0:00:30]} 33. Rd4 {[%emt 0:00:33]} Ne7 $2 {[%emt 0:00:31][%mdl 8192] [#]} (33... f5 $11) 34. b5 $2 {[%emt 0:00:30]} ({Only move:} 34. f4 $1 $18 {[%cal Rf4e5]} gxf4 35. gxf4) 34... Nf5 $15 {[%emt 0:00:24]} 35. Nxf5+ {[%emt 0:00:27]} exf5 {[%emt 0:00:08][%mdl 4096] Endgame. KQR-KQR} (35... Qxf5 $15 {should be considered.} 36. Rd2 g4) 36. Qd5 {[%emt 0:00:30] The position is equal.} Rc7 {[%emt 0:00:36]} 37. a4 {[%emt 0:00:14]} Qxd5 {[%emt 0:00:52]} (37... h4 {seems wilder.} 38. Rd2 hxg3+ 39. hxg3 f4) 38. cxd5 $11 {[%emt 0:00:44] KR-KR} Kf7 {[%emt 0:00:14]} 39. Ke3 {[%emt 0:00:27]} Rc3+ {[%emt 0:00:35]} 40. Rd3 {[%emt 0:00:00]} Rc4 {[%emt 0:00:00]} 41. Rd4 {[%emt 0:21:20]} Rc8 {[%emt 0:05:45]} 42. Kd3 {[%emt 0:01:17]} Rc5 {[%emt 0:05:24]} 43. d6 {[%emt 0:00:56] Strongly threatening d7.} Rc8 {[%emt 0:06:33]} 44. Rc4 {[%emt 0:03:21]} Rxc4 {[%emt 0:11:20]} 45. Kxc4 {[%emt 0:00:02] KP-KP} Ke6 {[%emt 0:00:01]} 46. d7 {[%emt 0:00:01]} Kxd7 {[%emt 0:00:07]} 47. Kd5 {[%emt 0:00:58]} h4 $1 {[%emt 0:00:28]} 48. gxh4 {[%emt 0:00:39]} gxh4 {[%emt 0:00:22]} 49. f4 {[%emt 0:05:39] White threatens h3 and mate.} h3 {[%emt 0:00:04]} 50. Kc4 {[%emt 0:00:04] Hoping for Kd5.} Kd6 {[%emt 0:02:47] Weighted Error Value: White=0.22 (precise) /Black=0.23 (precise) .  Loses game:     	---       	Black=1      Missed win:     	White=1     	---        Mistake:       	White=1     	Black=1      Inaccurate:     	White=2     	Black=2      OK:         	White=21    	Black=18     Best:        	---       	Black=1      Strong:       	---       	Black=2} 1/2-1/2

[Event "Srdja Dragasevic Memorial-A 2024"]
[Site "Cetinje"]
[Date "2024.06.25"]
[Round "5.3"]
[White "Kosic, Dragan"]
[Black "Karthik Venkataraman"]
[Result "0-1"]
[ECO "E12"]
[WhiteElo "2382"]
[BlackElo "2590"]
[Annotator "TA"]
[PlyCount "56"]
[EventDate "2024.06.23"]
[EventType "swiss"]
[EventCountry "MNE"]
[SourceTitle "playchess.com"]
[Source "ChessBase"]
[SourceQuality "1"]
[TimeControl "40/5400+30:1800+30"]

{[%evp 9,56,2,33,17,42,20,20,8,27,6,35,28,35,30,78,79,77,36,22,27,20,28,28,19,47,22,63,14,50,-29,-19,-89,-94,-164,-170,-175,-177,-251,-259,-417,-378,-434,-397,-508,-494,-711,-692,-29986,-29987]} 1. d4 {[%emt 0:02:56]} Nf6 {[%emt 0:00:06]} 2. Nf3 {[%emt 0:00:07]} b6 {[%emt 0:00:10]} 3. c4 {[%emt 0:00:58]} Bb7 {[%emt 0:00:07]} 4. Nc3 {[%emt 0:00:13]} e6 {[%emt 0:00:14]} 5. a3 {[%emt 0:02:22]} d6 {[%emt 0:01:18]} 6. Bf4 {[%emt 0:02:58]} g6 {[%emt 0:02:53]} 7. e3 {[%emt 0:00:09]} Bg7 {[%emt 0:00:07]} 8. Be2 {[%emt 0:00:05] The position is equal.} Nbd7 {[%emt 0:00:17]} 9. O-O {[%emt 0:00:32]} O-O {[%emt 0:00:15]} 10. Qc2 {[%emt 0:02:21]} Nh5 {[%emt 0:08:22]} 11. Bg5 {[%emt 0:03:18]} f6 {[%emt 0:00:07]} (11... Qc8 $11) 12. Bh4 $16 {[%emt 0:00:29]} g5 {[%emt 0:00:07]} 13. Nd2 {[%emt 0:00:44]} (13. d5 $5 gxh4 14. dxe6 $16 (14. Nd4 f5 $11)) 13... gxh4 {[%emt 0:00:10]} 14. Bxh5 {[%emt 0:00:07]} f5 {[%emt 0:00:02][%cal Ob7g2]} 15. Bf3 {[%emt 0:00:38]} c6 {[%emt 0:00:12]} 16. Rad1 {[%emt 0:10:41]} Kh8 {[%emt 0:01:50]} 17. Rfe1 {[%emt 0:07:04]} a6 {[%emt 0:04:50]} 18. Nb3 {[%emt 0:04:16]} (18. Ne2 $14 {might be stronger.}) 18... Qe7 {[%emt 0:14:36]} 19. Rd2 {[%emt 0:11:37]} ({White should try} 19. c5 $14) 19... e5 $11 {[%emt 0:02:35]} 20. dxe5 {[%emt 0:03:35]} (20. Be2 $11 {keeps the balance.}) 20... Nxe5 $17 {[%emt 0:00:11]} 21. Be2 {[%emt 0:00:07] [#]} (21. Nd4 $17 {was necessary.}) 21... f4 $1 $19 {[%emt 0:00:16]} 22. exf4 {[%emt 0:00:15]} Rxf4 {[%emt 0:00:03]} 23. Qd1 {[%emt 0:03:33]} (23. Rf1 {was worth a try.}) 23... Raf8 {[%emt 0:01:27] aiming for ...h3.} (23... Nxc4 $2 {is the wrong capture.} 24. Bxc4 Qf8 25. Nd4 $18) 24. Bf1 $2 {[%emt 0:04:51]} (24. Rf1 Nf7 (24... Nxc4 25. Bxc4 Rxc4 26. Rxd6 $17) 25. Rd3) 24... c5 {[%emt 0:03:41]} 25. Nd5 {[%emt 0:05:43]} Bxd5 {[%emt 0:00:40]} 26. Rxd5 {[%emt 0:00:10]} Rxf2 {[%emt 0:01:08]} 27. Rxd6 {[%emt 0:00:07]} (27. Nd2 $142 h3 28. Re2) 27... Qg5 {[%emt 0:04:21] [#] White must now prevent ...h3.} 28. Kh1 {[%emt 0:06:09]} Qf4 {[%emt 0:01:13] Weighted Error Value: White=0.84/Black=0.10 (very precise) .  Mistake:       	White=7     	Black=1      Inaccurate:     	White=2     	Black=4      OK:         	White=5     	Black=11     Best:        	White=2     	Black=1      Strong:       	---       	Black=1} 0-1

[Event "Srdja Dragasevic Memorial-A 2024"]
[Site "Cetinje"]
[Date "2024.06.25"]
[Round "5.4"]
[White "Sukovic, Andrej"]
[Black "Djukic, Nikola"]
[Result "1/2-1/2"]
[ECO "A36"]
[WhiteElo "2350"]
[BlackElo "2532"]
[Annotator "TA"]
[PlyCount "93"]
[EventDate "2024.06.23"]
[EventType "swiss"]
[EventCountry "MNE"]
[SourceTitle "playchess.com"]
[Source "ChessBase"]
[SourceQuality "1"]
[TimeControl "40/5400+30:1800+30"]

{[%evp 25,93,19,43,14,18,28,32,18,33,18,14,-34,-40,-37,-34,-75,-82,-85,-18,-16,-2,-1,0,-44,-64,-60,-61,-52,-56,-56,-14,-43,-49,-54,-55,-52,-70,-64,-66,-65,-74,-66,-58,-101,-106,-91,-14,-11,0,-55,-55,-52,0,0,0,-52,-52,-52,-52,-52,-52,-62,-59,-81,-81,-81,-81,-81,-81,-74]} 1. c4 {[%emt 0:06:14]} g6 {[%emt 0:00:27]} 2. Nc3 {[%emt 0:00:12]} c5 {[%emt 0:00:27]} 3. g3 {[%emt 0:00:12]} Bg7 {[%emt 0:00:10]} 4. Bg2 {[%emt 0:00:08]} Nc6 {[%emt 0:00:38]} 5. d3 {[%emt 0:00:09]} Nf6 {[%emt 0:01:01]} 6. e4 {[%emt 0:00:12]} d6 {[%emt 0:01:16]} 7. Nge2 {[%emt 0:00:27]} a6 {[%emt 0:01:35]} 8. a3 {[%emt 0:04:40]} Rb8 {[%emt 0:04:52]} 9. Rb1 {[%emt 0:00:13]} b5 {[%emt 0:02:40]} 10. cxb5 {[%emt 0:00:11]} axb5 {[%emt 0:00:06]} 11. b4 {[%emt 0:00:05]} O-O {[%emt 0:09:27]} 12. O-O {[%emt 0:05:23]} cxb4 {[%emt 0:08:01]} 13. axb4 {[%emt 0:00:12]} e5 {[%emt 0:00:05]} 14. Kh1 {[%emt 0:05:05]} Nh5 {[%emt 0:13:54]} 15. Be3 {[%emt 0:22:15]} Nd4 {[%emt 0:08:23]} 16. Nd5 {[%emt 0:06:55] White is slightly better.} Bg4 {[%emt 0:05:48]} 17. f3 {[%emt 0:07:58]} Be6 {[%emt 0:00:11]} 18. g4 {[%emt 0:10:16]} (18. Nxd4 $11 {should be considered.} exd4 19. Bf2) 18... Nxe2 {[%emt 0:07:55]} 19. gxh5 {[%emt 0:29:13]} Nd4 {[%emt 0:00:28]} 20. h6 {[%emt 0:00:00] [#]} Bh8 {[%emt 0:00:23]} 21. Nc3 {[%emt 0:01:00]} f5 {[%emt 0:08:25]} (21... Qh4 $17 22. Rc1 Rbc8) 22. f4 $11 {[%emt 0:00:30]} exf4 {[%emt 0:25:18]} 23. Bxf4 {[%emt 0:00:30]} Be5 {[%emt 0:00:30]} 24. Bxe5 {[%emt 0:00:00]} dxe5 {[%emt 0:00:00]} 25. exf5 {[%emt 0:01:00]} Nxf5 {[%emt 0:01:00][%cal Bd4f5,Bf5h6,Bh6g4][%mdl 32]} (25... gxf5 26. Qe1 Qf6 27. Ne2 $11) 26. Qe1 {[%emt 0:00:00]} Qd4 {[%cal Of5e3]} (26... Qxd3 $2 27. Qxe5 Qe3 28. Rxf5 Qxe5 29. Rxe5 $18) 27. Ne2 {[%emt 0:01:00]} Qb6 {[%emt 0:01:00]} (27... Qxd3 28. Nf4 $16) 28. Ng3 {[%emt 0:00:00]} (28. Rc1 {simplifies} Rfc8 29. Rxc8+ Rxc8 30. Qa1) 28... Nxh6 {[%emt 0:00:00]} 29. Qxe5 {[%emt 0:00:00][%cal Og3h5]} Ng4 {[%emt 0:00:00]} 30. Rxf8+ {[%emt 0:00:00]} Rxf8 {[%emt 0:00:00]} 31. Qc5 {[%emt 0:00:00]} Qd8 {[%emt 0:00:00] ...Qh4 is the strong threat.} 32. Rf1 {[%emt 0:00:00]} Rxf1+ {[%emt 0:00:00]} 33. Bxf1 {[%emt 0:00:00]} Qh4 {[%emt 0:00:00]} 34. Qg1 {[%emt 0:00:00]} Qf6 {[%emt 0:00:00]} 35. Qc5 {[%emt 0:01:27] [#]} Qf3+ {[%emt 0:00:00]} (35... Nxh2 $1 $17 36. Be2 (36. Kxh2 $2 Qh4+ 37. Kg1 Qxg3+ 38. Kh1 Bh3 $17) 36... Ng4 37. Bxg4 Bxg4) 36. Kg1 {[%emt 0:00:10]} Bd5 {[%emt 0:00:00]} (36... Qe3+ {simplifies} 37. Qxe3 Nxe3 38. d4 Bc4) 37. Qc8+ {[%emt 0:00:45]} (37. Ne4 $1 $11 Ne3 (37... Bxe4 38. dxe4 Ne3 39. Qxb5 $17) 38. Nf2) 37... Kg7 $15 {[%emt 0:00:00][%cal Rf3e3]} 38. Qc3+ {[%emt 0:00:17]} Kg8 {[%emt 0:01:35]} ({Black should play} 38... Kh6 $1 $15 39. Qd2+ Qe3+ (39... Ne3 40. Bh3 $11) 40. Qxe3+ Nxe3) 39. Qc8+ $11 {[%emt 0:00:06]} Kg7 {[%emt 0:00:07]} (39... Kf7 $11 40. Qd7+ Kf8 41. Qd8+ Kg7 42. Qe7+ Kh8) 40. Qc3+ $15 {[%emt 0:00:00]} Kh6 $1 {[%emt 0:00:00][%cal Rf3e3]} 41. Qd2+ {[%emt 0:02:07]} Qe3+ {[%emt 0:07:06]} ({But not} 41... Ne3 42. Bh3 $11) 42. Qxe3+ {[%emt 0:00:14]} Nxe3 {[%emt 0:00:05]} 43. Ne2 {[%emt 0:07:38]} Nc2 {[%emt 0:00:42] Prevents Nd4} 44. Bg2 {[%emt 0:00:32]} Nxb4 {[%emt 0:00:32] Threatens to win with ...Bxg2. Black is better.} 45. Nc3 {[%emt 0:00:18][%csl LRb5,LRd5]} Bxg2 {[%emt 0:00:30]} 46. Kxg2 {[%emt 0:00:07]} Nxd3 {[%emt 0:00:04] And now ...b4 would win.} 47. Nxb5 {[%emt 0:00:06] Weighted Error Value: White=0.11 (very precise) /Black=0.11 (very precise) .  Mistake:       	White=2     	Black=4      Inaccurate:     	White=4     	Black=1      OK:         	White=14    	Black=7      Best:        	White=3     	Black=7      Strong:       	---       	Black=1} 1/2-1/2

[Event "Srdja Dragasevic Memorial-A 2024"]
[Site "Cetinje"]
[Date "2024.06.25"]
[Round "5.5"]
[White "Kolmakov, Ivan D."]
[Black "Milanovic, Danilo"]
[Result "0-1"]
[ECO "B40"]
[WhiteElo "1902"]
[BlackElo "2438"]
[Annotator "TA"]
[PlyCount "62"]
[EventDate "2024.06.23"]
[EventType "swiss"]
[EventCountry "MNE"]
[SourceTitle "playchess.com"]
[Source "ChessBase"]
[SourceQuality "1"]
[TimeControl "40/5400+30:1800+30"]

{[%evp 9,62,24,35,34,34,26,26,23,45,50,99,55,74,75,62,-5,-18,-25,-10,-11,-10,-76,-40,-42,-48,-76,-11,-17,-14,-113,-42,-76,-80,-72,-73,-133,-29,-31,-18,-128,-97,-92,-99,-104,-119,-200,-196,-300,-294,-336,-294,-299,-257,-29983,-29979]} 1. e4 {[%emt 0:00:04]} c5 {[%emt 0:05:39]} 2. Nf3 {[%emt 0:00:13]} e6 {[%emt 0:00:06]} 3. a3 {[%emt 0:01:31]} b6 {[%emt 0:06:16]} 4. d4 {[%emt 0:06:54]} cxd4 {[%emt 0:00:38]} 5. Nxd4 {[%emt 0:00:18]} Bb7 {[%emt 0:00:23]} 6. Nc3 {[%emt 0:00:24]} a6 {[%emt 0:03:07] Dodges Ndb5} 7. Be2 {[%emt 0:03:02]} d6 {[%emt 0:06:39]} 8. f4 {[%emt 0:04:57] White has an edge.} Nf6 {[%emt 0:20:06]} 9. Bf3 {[%emt 0:01:46]} Ra7 {[%emt 0:06:21]} (9... d5 $14) 10. Be3 {[%emt 0:03:33]} Be7 {[%emt 0:01:03]} 11. Qe2 {[%emt 0:02:45]} Nbd7 {[%emt 0:03:47]} 12. g4 {[%emt 0:03:30]} (12. Bf2 $14) 12... Qa8 $11 {[%emt 0:00:22][%cal Oe8g8]} 13. O-O-O {[%emt 0:19:43]} Nxe4 {[%emt 0:01:24]} 14. Nxe4 {[%emt 0:01:25]} Bxe4 {[%emt 0:00:07]} 15. Bf2 {[%emt 0:04:45]} (15. Bxe4 $11 Qxe4 16. Rhe1) 15... Bxf3 {[%emt 0:03:32]} 16. Nxf3 {[%emt 0:00:10]} O-O {[%emt 0:01:04]} 17. g5 {[%emt 0:07:15]} Re8 {[%emt 0:07:00]} (17... Rc7 $17 18. Kb1 e5) 18. h4 {[%emt 0:01:05]} Rc7 {[%emt 0:03:52]} 19. h5 {[%emt 0:02:45]} (19. Kb1 $11) 19... Qc6 {[%emt 0:00:29]} ({Black should play} 19... Rec8 $17 {Hoping for ...Rxc2+.} 20. Nd4 e5) 20. g6 {[%emt 0:02:35] [#]} Qc4 $1 {[%emt 0:00:05]} 21. gxf7+ {[%emt 0:02:34]} Kxf7 {[%emt 0:00:02]} 22. Rd3 {[%emt 0:07:07]} ({White should try} 22. Qxc4 Rxc4 23. Bd4) 22... Nc5 {[%emt 0:05:11]} (22... Qxf4+ 23. Kb1 Rec8 24. c3 $15) (22... Qa2 $17 {aiming for ...Qa1+.} 23. Re1 Nc5) 23. Bxc5 {[%emt 0:00:14]} Rxc5 {[%emt 0:00:01]} 24. Nd4 {[%emt 0:03:52]} (24. Kb1 $11) 24... Bf6 $36 {[%emt 0:00:55][%mdl 2048] Keeping White busy.} 25. b3 {[%emt 0:01:57]} Qd5 {[%emt 0:00:18] Chess con chili.} 26. Nf3 {[%emt 0:04:35]} Qf5 {[%emt 0:00:55] Black is more active.} 27. Qe3 {[%emt 0:05:27]} (27. Ng5+ $17 Bxg5 28. fxg5 Qxg5+ 29. Kb1) 27... h6 $19 {[%emt 0:14:25]} 28. Nd2 {[%emt 0:04:47]} (28. Nd4 $142 Qg4 29. Qf2) 28... d5 {[%emt 0:00:29]} 29. b4 {[%emt 0:03:37]} Rc6 {[%emt 0:00:16]} 30. Nf3 {[%emt 0:00:32]} Rc4 {[%emt 0:06:56] ...Rec8 would now be deadly.} 31. Qxb6 $2 {[%emt 0:01:00] [#]} (31. Ne5+ $19 Bxe5 32. fxe5) 31... Qxd3 {[%emt 0:00:24] Weighted Error Value: White=0.54/Black=0.24 (precise) .  Mistake:       	White=8     	Black=4      Inaccurate:     	White=3     	Black=1      OK:         	White=6     	Black=9      Best:        	White=3     	Black=2      Strong:       	---       	Black=1} 0-1

[Event "Srdja Dragasevic Memorial-A 2024"]
[Site "Cetinje"]
[Date "2024.06.25"]
[Round "5.6"]
[White "Kalezic, Blazo"]
[Black "Xie, Bryan"]
[Result "1/2-1/2"]
[ECO "B40"]
[WhiteElo "2398"]
[BlackElo "2281"]
[Annotator "RC"]
[PlyCount "29"]
[EventDate "2024.06.23"]
[EventType "swiss"]
[EventCountry "MNE"]
[SourceTitle "playchess.com"]
[Source "ChessBase"]
[SourceQuality "1"]
[TimeControl "40/5400+30:1800+30"]

1. e4 {[%emt 0:00:04]} c5 {[%emt 0:00:16]} 2. Nf3 {[%emt 0:00:09]} e6 {[%emt 0:00:06]} 3. b3 {[%emt 0:00:10]} Nc6 {[%emt 0:00:42]} 4. Bb2 {[%emt 0:00:11]} a6 {[%emt 0:01:00]} 5. c4 {[%emt 0:00:36]} Qc7 {[%emt 0:00:58]} 6. Nc3 {[%emt 0:01:29]} Nf6 {[%emt 0:04:29]} 7. Bd3 {[%emt 0:02:52]} Nd4 {[%emt 0:01:42]} 8. Nxd4 {[%emt 0:01:04]} cxd4 {[%emt 0:00:07]} 9. Ne2 {[%emt 0:00:11]} e5 {[%emt 0:00:05]} 10. O-O {[%emt 0:00:51]} d6 {[%emt 0:00:31]} 11. f4 {[%emt 0:08:13]} h5 {[%emt 0:02:25]} 12. b4 {[%emt 0:02:18]} b6 {[%emt 0:00:58]} 13. Rc1 {[%emt 0:03:03]} Bb7 {[%emt 0:06:02]} 14. Qe1 {[%emt 0:02:19]} h4 {[%emt 0:07:18]} 15. Bc2 {[%emt 1:14:30]} 1/2-1/2